fUST/lending_fUST_20250119
["ID","MTS","AMOUNT","RATE_DAILY","PERIOD"]
[349515454,1737262249747,-2509.79,0.00023424,3]
[349515455,1737262249760,-500.0,0.00023424,3]
[349515456,1737262249769,-10777.99,0.00023424,3]
[349515457,1737262249779,-1197.29,0.00023424,3]
[349515458,1737262249788,-731.61,0.00023424,3]
[349515459,1737262249798,-3885.22,0.00023424,3]
[349515460,1737262249807,-500.0,0.00023424,3]
[349515461,1737262249816,-500.0,0.00023424,3]
[349515462,1737262249825,-958.39,0.00023424,3]
[349515463,1737262249835,-500.0,0.00023424,3]
[349515464,1737262249844,-500.0,0.00023424,3]
[349515465,1737262249853,-500.0,0.00023424,3]
[349515466,1737262249863,-500.0,0.00023424,3]
[349515467,1737262249873,-500.0,0.00023424,3]
[349515468,1737262249883,-500.0,0.00023424,3]
[349515469,1737262249894,-9459.85,0.00023424,3]
[349515470,1737262249903,-1053.42,0.00023424,3]
[349515471,1737262249912,-500.0,0.00023424,3]
[349515472,1737262249922,-500.0,0.00023424,3]
[349515473,1737262250004,-241.60310907,0.00023452,3]
[349515474,1737262250014,-151.0,0.000235,7]
[349515475,1737262250024,-241.60310907,0.00023555,3]
[349515476,1737262250033,-7333.59750737,0.00023556,2]
[349515477,1737262250043,-500.0,0.00023561,3]
[349515478,1737262250052,-500.0,0.00023561,3]
[349515479,1737262250061,-305.83,0.00023561,3]
[349515480,1737262250070,-686.31,0.00023561,3]
[349515481,1737262250079,-2949.21,0.00023561,3]
[349515482,1737262250088,-988.31,0.00023561,3]
[349515483,1737262250098,-500.0,0.00023561,3]
[349515484,1737262250107,-2509.79,0.00023561,3]
[349515485,1737262250116,-500.0,0.00023561,3]
[349515486,1737262250126,-10777.99,0.00023561,3]
[349515487,1737262250135,-1197.29,0.00023561,3]
[349515488,1737262250144,-731.61,0.00023561,3]
[349515489,1737262250154,-3885.22,0.00023561,3]
[349515490,1737262250169,-500.0,0.00023561,3]
[349515491,1737262250185,-429.45,0.00023561,3]
[349515492,1737262250196,-958.39,0.00023561,3]
[349515493,1737262250205,-500.0,0.00023561,3]
[349515494,1737262250215,-500.0,0.00023561,3]
[349515495,1737262250224,-229.98,0.00023561,3]
[349515496,1737262250233,-500.0,0.00023561,3]
[349515497,1737262250242,-500.0,0.00023561,3]
[349515498,1737262250251,-365.7,0.00023561,3]
[349515499,1737262250261,-9459.85,0.00023561,3]
[349515500,1737262250270,-1053.42,0.00023561,3]
[349515501,1737262250279,-500.0,0.00023561,3]
[349515502,1737262250288,-500.0,0.00023561,3]
[349515503,1737262250297,-1200.0,0.0002358,2]
[349515504,1737262250306,-151.0,0.0002358,2]
[349515505,1737262250315,-241.60310907,0.00023659,3]
[349515506,1737262250324,-11262.32875612,0.00023667,59]
[349515507,1737262250332,-500.0,0.00023698,3]
[349515508,1737262250341,-500.0,0.00023698,3]
[349515509,1737262250350,-686.31,0.00023698,3]
[349515510,1737262250359,-2949.21,0.00023698,3]
[349515511,1737262250369,-988.31,0.00023698,3]
[349515512,1737262250378,-500.0,0.00023698,3]
[349515513,1737262250387,-2509.79,0.00023698,3]
[349515514,1737262250397,-609.18,0.00023698,3]
[349515515,1737262250406,-10777.99,0.00023698,3]
[349515516,1737262250416,-1197.29,0.00023698,3]
[349515517,1737262250424,-731.61,0.00023698,3]
[349515518,1737262250434,-3885.22,0.00023698,3]
[349515519,1737262250443,-500.0,0.00023698,3]
[349515520,1737262250453,-958.39,0.00023698,3]
[349515521,1737262250462,-500.0,0.00023698,3]
[349515522,1737262250471,-500.0,0.00023698,3]
[349515523,1737262250482,-500.0,0.00023698,3]
[349515524,1737262250491,-500.0,0.00023698,3]
[349515525,1737262250500,-9459.85,0.00023698,3]
[349515526,1737262250509,-1053.42,0.00023698,3]
[349515527,1737262250518,-500.0,0.00023698,3]
[349515528,1737262250528,-500.0,0.00023698,3]
[349515529,1737262250537,-151.0,0.000237,7]
[349515530,1737262250546,-16219.55838321,0.00023733,2]
[349515531,1737262250555,-241.60310907,0.00023762,3]
[349515532,1737262250564,-2258.76,0.000238,30]
[349515533,1737262250573,-151.0,0.000238,5]
[349515534,1737262250582,-151.10820645,0.000238,14]
[349515535,1737262250591,-156.43,0.000238,31]
[349515536,1737262250600,-156.43,0.000238,31]
[349515537,1737262250609,-156.43,0.000238,31]
[349515538,1737262250618,-156.43,0.000238,31]
[349515539,1737262250627,-156.43,0.000238,31]
[349515540,1737262250636,-156.43,0.000238,31]
[349515541,1737262250647,-156.43,0.000238,31]
[349515542,1737262250655,-500.0,0.000238,14]
[349515543,1737262250664,-150.47801291,0.000238,12]
[349515544,1737262250674,-500.0,0.000238,14]
[349515545,1737262250683,-163.71024668,0.000238,14]
[349515546,1737262250692,-204.04233407,0.000238,14]
[349515547,1737262250701,-159.88886427,0.000238,14]
[349515548,1737262250710,-166.19024147,0.000238,14]
[349515549,1737262250719,-210.8274344,0.000238,14]
[349515550,1737262250728,-500.0,0.000238,14]
[349515551,1737262250737,-850.68543135,0.000238,14]
[349515552,1737262250746,-500.0,0.000238,14]
[349515553,1737262250759,-185.98838873,0.000238,14]
[349515554,1737262250768,-150.46503963,0.000238,14]
[349515555,1737262250778,-500.0,0.000238,14]
[349515556,1737262250787,-500.0,0.000238,14]
[349515557,1737262250796,-500.0,0.000238,14]
[349515558,1737262250805,-500.0,0.000238,14]
[349515559,1737262250814,-500.0,0.00023835,3]
[349515560,1737262250823,-625.72,0.00023835,3]
[349515561,1737262250835,-686.31,0.00023835,3]
[349515562,1737262250845,-2949.21,0.00023835,3]
[349515563,1737262250854,-988.31,0.00023835,3]
[349515564,1737262250864,-500.0,0.00023835,3]
[349515565,1737262250873,-2509.79,0.00023835,3]
[349515566,1737262250882,-10777.99,0.00023835,3]
[349515567,1737262250893,-1197.29,0.00023835,3]
[349515568,1737262250903,-731.61,0.00023835,3]
[349515569,1737262250912,-3885.22,0.00023835,3]
[349515570,1737262250923,-500.0,0.00023835,3]
[349515571,1737262250932,-958.39,0.00023835,3]
[349515572,1737262250942,-500.0,0.00023835,3]
[349515573,1737262250951,-500.0,0.00023835,3]
[349515574,1737262250960,-500.0,0.00023835,3]
[349515575,1737262250970,-500.0,0.00023835,3]
[349515576,1737262250980,-9459.85,0.00023835,3]
[349515577,1737262250989,-1053.42,0.00023835,3]
[349515578,1737262250999,-500.0,0.00023835,3]
[349515579,1737262251009,-500.0,0.00023835,3]
[349515580,1737262251019,-241.60310907,0.00023866,3]
[349515581,1737262251028,-5000.0,0.0002389,2]
[349515582,1737262251037,-5000.0,0.0002389,2]
[349515583,1737262251047,-5000.0,0.0002389,2]
[349515584,1737262251056,-5000.0,0.0002389,2]
[349515585,1737262251065,-5000.0,0.0002389,2]
[349515586,1737262251074,-5000.0,0.00023896,2]
[349515587,1737262251083,-5000.0,0.00023896,2]
[349515588,1737262251093,-5000.0,0.00023896,2]
[349515589,1737262251102,-2000.0,0.000239,2]
[349515590,1737262251111,-151.0,0.000239,9]
[349515591,1737262251120,-151.0,0.000239,6]
[349515592,1737262251129,-5020.21909979,0.00023902,2]
[349515593,1737262251141,-241.60310907,0.00023969,3]
[349515594,1737262251150,-500.0,0.00023972,3]
[349515595,1737262251158,-686.31,0.00023972,3]
[349515596,1737262251167,-2949.21,0.00023972,3]
[349515597,1737262251176,-988.31,0.00023972,3]
[349515598,1737262251186,-500.0,0.00023972,3]
[349515599,1737262251196,-2509.79,0.00023972,3]
[349515600,1737262251206,-10777.99,0.00023972,3]
[349515601,1737262251216,-1197.29,0.00023972,3]
[349515602,1737262251225,-731.61,0.00023972,3]
[349515603,1737262251234,-3885.22,0.00023972,3]
[349515604,1737262251243,-379.81,0.00023972,3]
[349515605,1737262251253,-958.39,0.00023972,3]
[349515606,1737262251263,-500.0,0.00023972,3]
[349515607,1737262251273,-448.05,0.00023972,3]
[349515608,1737262251282,-500.0,0.00023972,3]
[349515609,1737262251291,-500.0,0.00023972,3]
[349515610,1737262251302,-9459.85,0.00023972,3]
[349515611,1737262251311,-1053.42,0.00023972,3]
[349515612,1737262251321,-500.0,0.00023972,3]
[349515613,1737262251330,-500.0,0.00023972,3]
[349515614,1737262251339,-1000.0,0.00024,24]
[349515615,1737262251348,-500.0,0.00024,7]
[349515616,1737262251357,-500.0,0.00024,2]
[349515617,1737262251366,-30000.0,0.00024,10]
[349515618,1737262251375,-30000.0,0.00024,10]
[349515619,1737262251384,-26054.75184803,0.00024,10]
[349515620,1737262251394,-500.0,0.00024,2]
[349515621,1737262251403,-500.0,0.00024,2]
[349515622,1737262251411,-500.0,0.00024,2]
[349515623,1737262251420,-500.0,0.00024,2]
[349515624,1737262251429,-500.0,0.00024,2]
[349515625,1737262251438,-500.0,0.00024,2]
[349515626,1737262251447,-500.0,0.00024,2]
[349515627,1737262251456,-500.0,0.00024,2]
[349515628,1737262251465,-500.0,0.00024,2]
[349515629,1737262251474,-500.0,0.00024,2]
[349515630,1737262251483,-500.0,0.00024,2]
[349515631,1737262251562,-500.0,0.00024,2]
[349515632,1737262251572,-500.0,0.00024,2]
[349515633,1737262251582,-500.0,0.00024,2]
[349515634,1737262251591,-500.0,0.00024,2]
[349515635,1737262251600,-500.0,0.00024,2]
[349515636,1737262251609,-500.0,0.00024,2]
[349515637,1737262251619,-581.04016993,0.00024,2]
[349515638,1737262251629,-500.0,0.00024,2]
[349515639,1737262251638,-500.0,0.00024,2]
[349515640,1737262251649,-500.0,0.00024,2]
[349515641,1737262251658,-500.0,0.00024,2]
[349515642,1737262251668,-500.0,0.00024,2]
[349515643,1737262251677,-500.0,0.00024,2]
[349515644,1737262251687,-500.0,0.00024,2]
[349515645,1737262251696,-500.0,0.00024,2]
[349515646,1737262251706,-500.0,0.00024,2]
[349515647,1737262251715,-500.0,0.00024,2]
[349515648,1737262251724,-500.0,0.00024,2]
[349515649,1737262251734,-500.0,0.00024,2]
[349515650,1737262251744,-500.0,0.00024,2]
[349515651,1737262251756,-500.0,0.00024,2]
[349515652,1737262251766,-500.0,0.00024,2]
[349515653,1737262251776,-500.0,0.00024,2]
[349515654,1737262251786,-500.0,0.00024,2]
[349515655,1737262251797,-583.34742875,0.00024,2]
[349515656,1737262251808,-167.89585603,0.00024018,2]
[349515657,1737262251818,-7438.69753278,0.00024056,7]
[349515658,1737262251828,-7438.69753278,0.0002406,7]
[349515659,1737262251840,-160.0,0.00024071,120]
[349515660,1737262251852,-241.60310907,0.00024072,3]
[349515661,1737262251864,-500.0,0.00024074,14]
[349515662,1737262251875,-500.0,0.00024074,14]
[349515663,1737262251886,-200.40572938,0.00024074,14]
[349515664,1737262251901,-500.0,0.00024074,14]
[349515665,1737262251912,-951.42471339,0.00024074,14]
[349515666,1737262251933,-500.0,0.00024074,14]
[349515667,1737262251943,-500.0,0.00024074,14]
[349515668,1737262251954,-500.0,0.00024074,14]
[349515669,1737262251967,-853.44155148,0.00024074,14]
[349515670,1737262251978,-160.0,0.00024077,120]
[349515671,1737262251988,-2509.88,0.000241,14]
[349515672,1737262251999,-6435.57,0.000241,14]
[349515673,1737262252010,-13813.54,0.000241,2]
[349515674,1737262252020,-500.0,0.00024109,3]
[349515675,1737262252032,-686.31,0.00024109,3]
[349515676,1737262252043,-2949.21,0.00024109,3]
[349515677,1737262252053,-988.31,0.00024109,3]
[349515678,1737262252065,-500.0,0.00024109,3]
[349515679,1737262252076,-2509.79,0.00024109,3]
[349515680,1737262252087,-10777.99,0.00024109,3]
[349515681,1737262252098,-1197.29,0.00024109,3]
[349515682,1737262252109,-731.61,0.00024109,3]
[349515683,1737262252118,-3885.22,0.00024109,3]
[349515684,1737262252128,-958.39,0.00024109,3]
[349515685,1737262252138,-523.17,0.00024109,3]
[349515686,1737262252157,-500.0,0.00024109,3]
[349515687,1737262252167,-500.0,0.00024109,3]
[349515688,1737262252177,-9459.85,0.00024109,3]
[349515689,1737262252187,-1053.42,0.00024109,3]
[349515690,1737262252197,-500.0,0.00024109,3]
[349515691,1737262252207,-500.0,0.00024109,3]
[349515692,1737262252216,-223.357772,0.0002411,2]
[349515693,1737262252236,-223.357772,0.0002411,8]
[349515694,1737262252246,-223.357772,0.0002411,14]
[349515695,1737262252255,-223.357772,0.0002411,20]
[349515696,1737262252265,-223.357772,0.0002411,26]
[349515697,1737262252275,-223.357772,0.0002411,33]
[349515698,1737262252284,-223.357772,0.0002411,39]
[349515699,1737262252294,-223.357772,0.0002411,45]
[349515700,1737262252303,-223.357772,0.0002411,51]
[349515701,1737262252313,-223.357772,0.0002411,57]
[349515702,1737262252323,-223.357772,0.0002411,64]
[349515703,1737262252332,-223.357772,0.0002411,70]
[349515704,1737262252341,-223.357772,0.0002411,76]
[349515705,1737262252350,-223.357772,0.0002411,82]
[349515706,1737262252360,-223.357772,0.0002411,88]
[349515707,1737262252369,-223.357772,0.0002411,95]
[349515708,1737262252379,-223.357772,0.0002411,101]
[349515709,1737262252388,-223.357772,0.0002411,107]
[349515710,1737262252404,-223.357772,0.0002411,113]
[349515711,1737262252413,-223.357772,0.0002411,120]
[349515712,1737262252422,-271719.64839282,0.00024118,61]
[349515713,1737262252505,-42191.64936865,0.00024118,61]
[349515714,1737262374814,200.0,0.00024,120]
[349515715,1737262415552,10000.0,0.000167,2]
[349515716,1737262427719,10000.0,0.00018,30]
[349515717,1737262436105,10000.0,0.00018,30]
[349515718,1737262444440,10000.0,0.000167,2]
[349515719,1737262451464,10000.0,0.00018,30]
[349515720,1737262458009,1271.88,0.000167,2]
[349515724,1737262491936,164.203799,0.00013973,2]
[349515728,1737263425976,161.534236,0.00013973,2]
[349515809,1737263432660,-1778.4821349,0.00018454,2]
[349515811,1737263432672,-2415.27075476,0.00018454,2]
[349515863,1737263443165,-806.24711034,0.00018454,2]
[349515864,1737263443174,-2171.02057734,0.0001864,2]
[349515865,1737263443185,-876.06704634,0.000189,2]
[349515866,1737263443195,-199.27807214,0.00019211,2]
[349515867,1737263443204,-300.0,0.00019412,2]
[349515868,1737263443214,-3296.44390846,0.00019413,2]
[349515910,1737263830772,1253.0,0.00024,120]
[349515911,1737263926669,1487549.08600607,0.000165,2]
[349515913,1737264293283,159.382639,0.00013973,2]
[349515915,1737264380243,1889.03276072,0.000167,2]
[349515916,1737264388541,5000.0,0.000167,2]
[349515918,1737264499763,4600.74599693,0.000125,2]
[349516019,1737264632849,-5000.0,0.00017541,2]
[349516020,1737264632859,-300.0,0.00017718,2]
[349516021,1737264632869,-11884.0071259,0.00017719,2]
[349516022,1737264632885,-7282.87032316,0.00017719,2]
[349516023,1737264632972,-2416.67864244,0.00017719,2]
[349516026,1737264633128,-250.0,0.00018283,2]
[349516027,1737264633139,-525.924883,0.00018423,2]
[349516028,1737264633149,-276.11761432,0.0001854,2]
[349516030,1737264633161,-1869.03403965,0.0001854,2]
[349516031,1737264633174,-2065.82073165,0.0001854,2]
[349516032,1737264633183,-584.04469756,0.000189,2]
[349516033,1737264633193,-7572.31835689,0.00018979,2]
[349516034,1737264633203,-11951.4166821,0.00019,3]
[349516035,1737264633215,-468.04,0.00019,3]
[349516047,1737264638157,-5520.15359557,0.00019,3]
[349516048,1737264638167,-420.0,0.00019338,2]
[349516049,1737264638176,-260.35192672,0.00019772,2]
[349516050,1737264638186,-181.01,0.00019772,2]
[349516051,1737264638195,-154.47,0.00019799,2]
[349516052,1737264638205,-1507.26591155,0.0002,8]
[349516053,1737264638218,-324.22683165,0.0002,8]
[349516054,1737264638229,-822.16412362,0.0002,8]
[349516055,1737264638240,-314.74,0.0002,8]
[349516056,1737264638252,-1705.04698977,0.0002,8]
[349516057,1737264638264,-661.67375334,0.0002,8]
[349516058,1737264638283,-3499.791812,0.0002,8]
[349516059,1737264638294,-500.0,0.0002,8]
[349516063,1737264640465,-1703.88250269,0.0002,8]
[349516064,1737264640476,-546.57882163,0.0002,8]
[349516065,1737264640488,-12101.51745482,0.0002,8]
[349516093,1737265157598,164.715243,0.00013973,2]
[349516151,1737265832651,-2949.00033053,0.00016922,2]
[349516152,1737265832663,-2050.99966947,0.00016922,2]
[349516153,1737265832672,-5000.0,0.00017093,2]
[349516154,1737265832681,-300.0,0.00018899,2]
[349516155,1737265832691,-389.36313171,0.000189,2]
[349516156,1737265832702,-167.647135,0.00019383,2]
[349516157,1737265832712,-262.962442,0.00019416,2]
[349516158,1737265832721,-483.84742355,0.000199,2]
[349516159,1737265832731,-2498.64069033,0.000199,2]
[349516160,1737265832740,-6115.31664742,0.0002,8]
[349516161,1737265832779,-3227.0408752,0.0002,8]
[349516162,1737265832789,-164.715243,0.00020447,2]
[349516163,1737265832799,-1292.67437846,0.00020591,2]
[349516164,1737265832808,-720.0,0.00020591,2]
[349516165,1737265832817,-420.0,0.00020602,2]
[349516166,1737265832827,-181.01,0.00021817,2]
[349516167,1737265832836,-500.0,0.00021917,3]
[349516168,1737265832846,-500.0,0.00021917,3]
[349516169,1737265832855,-732.03,0.00021917,3]
[349516170,1737265832867,-500.0,0.00021917,3]
[349516171,1737265832878,-500.0,0.00021917,3]
[349516172,1737265832888,-860.19,0.00021917,3]
[349516173,1737265832897,-500.0,0.00021917,3]
[349516174,1737265832907,-500.0,0.00021917,3]
[349516175,1737265833041,-500.0,0.00021917,3]
[349516176,1737265833051,-500.0,0.00021917,3]
[349516177,1737265833060,-2759.12,0.00021917,3]
[349516178,1737265833070,-1585.84,0.00021917,3]
[349516179,1737265833079,-500.0,0.00021917,3]
[349516180,1737265833089,-500.0,0.00021917,3]
[349516181,1737265833098,-378.18,0.00021917,3]
[349516182,1737265833107,-500.0,0.00021917,3]
[349516183,1737265833117,-500.0,0.00021917,3]
[349516184,1737265833126,-500.0,0.00021917,3]
[349516185,1737265833135,-3163.65,0.00021917,3]
[349516186,1737265833144,-500.0,0.00021917,3]
[349516187,1737265833154,-1985.04332635,0.00022,8]
[349516188,1737265833163,-500.0,0.00022054,3]
[349516189,1737265833172,-732.03,0.00022054,3]
[349516190,1737265833181,-500.0,0.00022054,3]
[349516191,1737265833190,-500.0,0.00022054,3]
[349516192,1737265833202,-860.19,0.00022054,3]
[349516193,1737265833211,-500.0,0.00022054,3]
[349516194,1737265833221,-500.0,0.00022054,3]
[349516195,1737265833231,-500.0,0.00022054,3]
[349516196,1737265833240,-2759.12,0.00022054,3]
[349516197,1737265833249,-1585.84,0.00022054,3]
[349516198,1737265833261,-500.0,0.00022054,3]
[349516199,1737265833271,-500.0,0.00022054,3]
[349516200,1737265833280,-500.0,0.00022054,3]
[349516201,1737265833290,-500.0,0.00022054,3]
[349516202,1737265833299,-500.0,0.00022054,3]
[349516203,1737265833308,-3163.65,0.00022054,3]
[349516204,1737265833318,-500.0,0.00022054,3]
[349516205,1737265833327,-172.80445974,0.00022091,2]
[349516206,1737265833337,-500.0,0.00022191,3]
[349516207,1737265833347,-732.03,0.00022191,3]
[349516208,1737265833356,-500.0,0.00022191,3]
[349516209,1737265833365,-500.0,0.00022191,3]
[349516210,1737265833374,-860.19,0.00022191,3]
[349516211,1737265833384,-500.0,0.00022191,3]
[349516212,1737265833393,-500.0,0.00022191,3]
[349516213,1737265833403,-500.0,0.00022191,3]
[349516214,1737265833412,-2759.12,0.00022191,3]
[349516215,1737265833422,-1585.84,0.00022191,3]
[349516216,1737265833431,-500.0,0.00022191,3]
[349516217,1737265833441,-575.15,0.00022191,3]
[349516218,1737265833452,-500.0,0.00022191,3]
[349516219,1737265833462,-500.0,0.00022191,3]
[349516220,1737265833472,-500.0,0.00022191,3]
[349516221,1737265833481,-3163.65,0.00022191,3]
[349516222,1737265833491,-408.91,0.00022191,3]
[349516223,1737265833500,-720.0,0.00022238,4]
[349516224,1737265833510,-10999.02870833,0.00022327,5]
[349516225,1737265833519,-51023.35096091,0.00022327,5]
[349516226,1737265833531,-3435.28023237,0.00022327,5]
[349516254,1737265838293,-1686.99999999,0.00018711,2]
[349516255,1737265838351,-3313.00000001,0.00018711,2]
[349516256,1737265838360,-15839.1258977,0.00022327,5]
[349516257,1737265838409,-3747.887356,0.00022327,5]
[349516389,1737265843535,-1000.71049046,0.00022327,5]
[349516498,1737265846420,-363.914402,0.00022234,2]
[349516499,1737265846579,-4636.085598,0.00022234,2]
[349516500,1737265846590,-17592.5741637,0.00022327,5]
[349516501,1737265846600,-500.0,0.00022328,3]
[349516502,1737265846610,-732.03,0.00022328,3]
[349516503,1737265846620,-224.54378159,0.00022328,3]
[349516504,1737265846630,-500.0,0.00022328,3]
[349516505,1737265846639,-860.19,0.00022328,3]
[349516506,1737265846649,-500.0,0.00022328,3]
[349516507,1737265846658,-500.0,0.00022328,3]
[349516508,1737265846668,-317.46,0.00022328,3]
[349516509,1737265846678,-2759.12,0.00022328,3]
[349516510,1737265846688,-1585.84,0.00022328,3]
[349516511,1737265846697,-500.0,0.00022328,3]
[349516512,1737265846707,-500.0,0.00022328,3]
[349516513,1737265846716,-500.0,0.00022328,3]
[349516514,1737265846725,-500.0,0.00022328,3]
[349516515,1737265846734,-3163.65,0.00022328,3]
[349516516,1737265846743,-587.0,0.00022459,2]
[349516517,1737265846753,-500.0,0.0002246,2]
[349516518,1737265846762,-500.0,0.0002246,2]
[349516519,1737265846771,-497.81786661,0.0002246,2]
[349516520,1737265846781,-500.0,0.0002246,2]
[349516521,1737265846791,-500.0,0.0002246,2]
[349516522,1737265846800,-579.10822676,0.0002246,2]
[349516523,1737265846809,-500.0,0.0002246,2]
[349516524,1737265846818,-500.0,0.0002246,2]
[349516525,1737265846828,-500.0,0.0002246,2]
[349516526,1737265846838,-500.0,0.0002246,2]
[349516527,1737265846847,-500.0,0.0002246,2]
[349516528,1737265846860,-216.1292796,0.0002246,2]
[349516529,1737265846871,-500.0,0.0002246,2]
[349516530,1737265846883,-500.0,0.0002246,2]
[349516531,1737265846892,-500.0,0.0002246,2]
[349516532,1737265846903,-500.0,0.0002246,2]
[349516533,1737265846913,-500.0,0.0002246,2]
[349516534,1737265846922,-500.0,0.0002246,2]
[349516535,1737265846931,-500.0,0.0002246,2]
[349516536,1737265846940,-357.5849327,0.0002246,2]
[349516537,1737265846950,-500.0,0.0002246,2]
[349516538,1737265846959,-335.45875605,0.0002246,2]
[349516539,1737265846968,-500.0,0.0002246,2]
[349516540,1737265846978,-500.0,0.0002246,2]
[349516541,1737265846987,-500.0,0.0002246,2]
[349516542,1737265846995,-500.0,0.0002246,2]
[349516543,1737265847004,-500.0,0.0002246,2]
[349516544,1737265847014,-500.0,0.0002246,2]
[349516545,1737265847023,-500.0,0.0002246,2]
[349516546,1737265847032,-500.0,0.0002246,2]
[349516547,1737265847041,-500.0,0.0002246,2]
[349516548,1737265847050,-500.0,0.0002246,2]
[349516549,1737265847059,-500.0,0.0002246,2]
[349516550,1737265847068,-500.0,0.0002246,2]
[349516551,1737265847077,-500.0,0.0002246,2]
[349516552,1737265847086,-500.0,0.0002246,2]
[349516553,1737265847096,-500.0,0.0002246,2]
[349516554,1737265847105,-500.0,0.0002246,2]
[349516555,1737265847115,-205.49527343,0.0002246,2]
[349516556,1737265847123,-500.0,0.0002246,2]
[349516557,1737265847132,-500.0,0.0002246,2]
[349516558,1737265847142,-500.0,0.0002246,2]
[349516559,1737265847151,-500.0,0.0002246,2]
[349516560,1737265847160,-500.0,0.0002246,2]
[349516561,1737265847170,-500.0,0.0002246,2]
[349516562,1737265847180,-500.0,0.0002246,2]
[349516563,1737265847189,-500.0,0.0002246,2]
[349516564,1737265847198,-500.0,0.0002246,2]
[349516565,1737265847209,-500.0,0.0002246,2]
[349516566,1737265847219,-176.58071581,0.0002246,2]
[349516567,1737265847228,-500.0,0.0002246,2]
[349516568,1737265847237,-500.0,0.0002246,2]
[349516569,1737265847246,-500.0,0.0002246,2]
[349516570,1737265847256,-500.0,0.0002246,2]
[349516571,1737265847266,-500.0,0.0002246,2]
[349516572,1737265847275,-500.0,0.0002246,2]
[349516573,1737265847284,-500.0,0.0002246,2]
[349516574,1737265847294,-500.0,0.0002246,2]
[349516575,1737265847303,-500.0,0.0002246,2]
[349516576,1737265847313,-500.0,0.0002246,2]
[349516577,1737265847322,-500.0,0.0002246,2]
[349516578,1737265847332,-500.0,0.0002246,2]
[349516579,1737265847342,-500.0,0.0002246,2]
[349516580,1737265847351,-500.0,0.0002246,2]
[349516581,1737265847360,-500.0,0.0002246,2]
[349516582,1737265847370,-500.0,0.0002246,2]
[349516583,1737265847379,-500.0,0.0002246,2]
[349516584,1737265847388,-500.0,0.0002246,2]
[349516585,1737265847397,-500.0,0.0002246,2]
[349516586,1737265847407,-430.12239321,0.0002246,2]
[349516587,1737265847417,-500.0,0.00022465,3]
[349516588,1737265847426,-732.03,0.00022465,3]
[349516589,1737265847435,-500.0,0.00022465,3]
[349516590,1737265847444,-860.19,0.00022465,3]
[349516591,1737265847453,-500.0,0.00022465,3]
[349516592,1737265847463,-432.15,0.00022465,3]
[349516593,1737265847472,-2759.12,0.00022465,3]
[349516594,1737265847481,-1585.84,0.00022465,3]
[349516595,1737265847491,-500.0,0.00022465,3]
[349516596,1737265847500,-500.0,0.00022465,3]
[349516597,1737265847509,-500.0,0.00022465,3]
[349516598,1737265847519,-500.0,0.00022465,3]
[349516599,1737265847528,-3163.65,0.00022465,3]
[349516600,1737265847537,-502.11291803,0.00022471,2]
[349516601,1737265847547,-94.54689225,0.00022521,2]
[349516602,1737265935031,196.23,0.00024,120]